[Event "Titled Tuesday Blitz July 27 2021"]
[White "Tomiello, Lucas Costamilan"]
[Black "Eggleston, Thomas A"]
[WhiteFideId "22701940"]
[BlackFideId "412139"]
[WhiteElo "1945"]
[BlackElo "2174"]
[Result "1-0"]
[Round "08"]
[TimeControl "180+1"]
[Date "2021.07.27"]
[WhiteClock "0:00:06"]
[BlackClock "0:00:16"]

1. e4 {[%clk 0:03:00]}  e6 {[%clk 0:02:59]} 2. d4 {[%clk 0:03:01]}  d5 {[%clk 0:03:00]} 3. Nd2 {[%clk 0:03:02]}  c5 {[%clk 0:03:00]} 4. dxc5 {[%clk 0:03:01]}  Bxc5 {[%clk 0:02:59]} 5. Bd3 {[%clk 0:03:01]}  Nf6 {[%clk 0:02:58]} 6. e5 {[%clk 0:03:02]}  Nfd7 {[%clk 0:02:58]} 7. f4 {[%clk 0:03:02]}  Bxg1 {[%clk 0:02:23]} 8. Rxg1 {[%clk 0:03:03]}  Qh4+ {[%clk 0:02:23]} 9. g3 {[%clk 0:02:58]}  Qxh2 {[%clk 0:02:23]} 10. Nf3 {[%clk 0:02:59]}  Qh3 {[%clk 0:02:13]} 11. Qe2 {[%clk 0:02:46]}  Nc6 {[%clk 0:02:08]} 12. Ng5 {[%clk 0:02:39]}  Qh6 {[%clk 0:02:06]} 13. c3 {[%clk 0:02:33]}  f5 {[%clk 0:02:04]} 14. exf6 {[%clk 0:02:22]}  Qxf6 {[%clk 0:02:01]} 15. Nxh7 {[%clk 0:02:17]}  Rxh7 {[%clk 0:01:44]} 16. Bxh7 {[%clk 0:02:18]}  g6 {[%clk 0:01:44]} 17. Bd2 {[%clk 0:02:05]}  Nf8 {[%clk 0:01:44]} 18. Rh1 {[%clk 0:02:00]}  Qg7 {[%clk 0:01:42]} 19. Qh2 {[%clk 0:01:33]}  Bd7 {[%clk 0:01:29]} 20. Qh6 {[%clk 0:01:21]}  Qf7 {[%clk 0:01:29]} 21. f5 {[%clk 0:01:13]}  exf5 {[%clk 0:01:08]} 22. Bg5 {[%clk 0:01:04]}  Ne5 {[%clk 0:01:01]} 23. O-O-O {[%clk 0:00:57]}  Ng4 {[%clk 0:01:00]} 24. Rde1+ {[%clk 0:00:54]}  Be6 {[%clk 0:00:58]} 25. Qh4 {[%clk 0:00:30]}  Kd7 {[%clk 0:00:58]} 26. Re2 {[%clk 0:00:22]}  Rc8 {[%clk 0:00:54]} 27. Rhe1 {[%clk 0:00:17]}  Rc6 {[%clk 0:00:52]} 28. Kb1 {[%clk 0:00:11]}  Nxh7 {[%clk 0:00:50]} 29. Bf4 {[%clk 0:00:09]}  Nf8 {[%clk 0:00:40]} 30. Qh1 {[%clk 0:00:08]}  Kc8 {[%clk 0:00:39]} 31. Rd1 {[%clk 0:00:09]}  b6 {[%clk 0:00:38]} 32. Qh8 {[%clk 0:00:09]}  Kb7 {[%clk 0:00:37]} 33. Rde1 {[%clk 0:00:08]}  d4 {[%clk 0:00:35]} 34. cxd4 {[%clk 0:00:07]}  Bxa2+ {[%clk 0:00:35]} 35. Ka1 {[%clk 0:00:07]}  Bc4 {[%clk 0:00:34]} 36. Re7+ {[%clk 0:00:07]}  Qxe7 {[%clk 0:00:32]} 37. Rxe7+ {[%clk 0:00:08]}  Ka6 {[%clk 0:00:31]} 38. Qxf8 {[%clk 0:00:08]}  Bb3 {[%clk 0:00:30]} 39. Qg7 {[%clk 0:00:06]}  Rc4 {[%clk 0:00:26]} 40. Rxa7+ {[%clk 0:00:06]}  Kb5 {[%clk 0:00:26]} 41. Qd7+ {[%clk 0:00:07]}  Kb4 {[%clk 0:00:26]} 42. Rb7 {[%clk 0:00:04]}  Ba4 {[%clk 0:00:20]} 43. Rxb6+ {[%clk 0:00:03]}  Ka5 {[%clk 0:00:21]} 44. Qd5+ {[%clk 0:00:02]}  Rc5 {[%clk 0:00:20]} 45. Bd2+ {[%clk 0:00:02]}  Kxb6 {[%clk 0:00:19]} 46. Qxc5+ {[%clk 0:00:03]}  Kb7 {[%clk 0:00:19]} 47. d5 {[%clk 0:00:04]}  Nf6 {[%clk 0:00:17]} 48. Qb4+ {[%clk 0:00:05]}  Kc7 {[%clk 0:00:16]} 49. Qxa4 {[%clk 0:00:05]}  Kd6 {[%clk 0:00:17]} 50. Qc6+ {[%clk 0:00:05]}  Ke5 {[%clk 0:00:16]} 51. Bc3+ {[%clk 0:00:06]} 1-0


[Site "https://www.chess.com"]

[Event "Titled Tuesday Blitz July 27 2021"]
[White "Tristan, Leonardo"]
[Black "Demchenko, Anton"]
[WhiteFideId "113816"]
[BlackFideId "4160258"]
[WhiteElo "2404"]
[BlackElo "2593"]
[Result "1-0"]
[Round "08"]
[TimeControl "180+1"]
[Date "2021.07.27"]
[WhiteClock "0:00:09"]
[BlackClock "0:00:08"]

1. d4 {[%clk 0:03:00]}  d5 {[%clk 0:03:00]} 2. Bf4 {[%clk 0:03:00]}  Nf6 {[%clk 0:03:00]} 3. e3 {[%clk 0:03:00]}  e6 {[%clk 0:02:58]} 4. Nf3 {[%clk 0:03:00]}  c5 {[%clk 0:02:59]} 5. Nbd2 {[%clk 0:03:00]}  Nc6 {[%clk 0:02:59]} 6. c3 {[%clk 0:02:59]}  Nh5 {[%clk 0:03:00]} 7. Bg5 {[%clk 0:02:58]}  f6 {[%clk 0:03:00]} 8. Bh4 {[%clk 0:02:37]}  g6 {[%clk 0:03:00]} 9. g4 {[%clk 0:02:35]}  Ng7 {[%clk 0:02:57]} 10. Bg3 {[%clk 0:02:34]}  Bd6 {[%clk 0:02:53]} 11. Bd3 {[%clk 0:02:23]}  cxd4 {[%clk 0:02:47]} 12. exd4 {[%clk 0:02:22]}  O-O {[%clk 0:02:46]} 13. Qc2 {[%clk 0:02:21]}  Rf7 {[%clk 0:02:39]} 14. O-O-O {[%clk 0:01:29]}  Nb4 {[%clk 0:02:38]} 15. Qb1 {[%clk 0:01:27]}  Rc7 {[%clk 0:02:34]} 16. a3 {[%clk 0:00:53]}  a5 {[%clk 0:02:35]} 17. Bxd6 {[%clk 0:00:47]}  Qxd6 {[%clk 0:02:34]} 18. Bxg6 {[%clk 0:00:46]}  hxg6 {[%clk 0:02:25]} 19. Qxg6 {[%clk 0:00:46]}  Bd7 {[%clk 0:02:19]} 20. Kb1 {[%clk 0:00:30]}  Qf4 {[%clk 0:01:57]} 21. cxb4 {[%clk 0:00:23]}  axb4 {[%clk 0:01:57]} 22. axb4 {[%clk 0:00:23]}  Bb5 {[%clk 0:01:46]} 23. Rc1 {[%clk 0:00:20]}  Rf7 {[%clk 0:01:33]} 24. g5 {[%clk 0:00:16]}  Be2 {[%clk 0:01:25]} 25. Rc3 {[%clk 0:00:15]}  fxg5 {[%clk 0:00:59]} 26. Nxg5 {[%clk 0:00:15]}  Qf5+ {[%clk 0:00:54]} 27. Qxf5 {[%clk 0:00:15]}  Rxf5 {[%clk 0:00:54]} 28. Rg1 {[%clk 0:00:16]}  Rf6 {[%clk 0:00:31]} 29. Re3 {[%clk 0:00:14]}  Bh5 {[%clk 0:00:29]} 30. Ndf3 {[%clk 0:00:08]}  Bg6+ {[%clk 0:00:28]} 31. Kc1 {[%clk 0:00:06]}  Ra2 {[%clk 0:00:07]} 32. Rg3 {[%clk 0:00:03]}  Kf8 {[%clk 0:00:07]} 33. Ne5 {[%clk 0:00:03]}  Be8 {[%clk 0:00:04]} 34. Nh7+ {[%clk 0:00:03]}  Ke7 {[%clk 0:00:04]} 35. Nxf6 {[%clk 0:00:03]}  Kxf6 {[%clk 0:00:05]} 36. Ng4+ {[%clk 0:00:04]}  Ke7 {[%clk 0:00:05]} 37. Rgf3 {[%clk 0:00:03]}  Kd6 {[%clk 0:00:04]} 38. Nf6 {[%clk 0:00:03]}  Bb5 {[%clk 0:00:03]} 39. Ra3 {[%clk 0:00:03]}  Rxa3 {[%clk 0:00:03]} 40. bxa3 {[%clk 0:00:04]}  Nf5 {[%clk 0:00:02]} 41. Rxf5 {[%clk 0:00:04]}  exf5 {[%clk 0:00:03]} 42. Kd2 {[%clk 0:00:04]}  Ke6 {[%clk 0:00:03]} 43. Nh5 {[%clk 0:00:04]}  Kf7 {[%clk 0:00:02]} 44. Ke3 {[%clk 0:00:04]}  Bc4 {[%clk 0:00:03]} 45. Ng3 {[%clk 0:00:04]}  Ke6 {[%clk 0:00:04]} 46. Kf4 {[%clk 0:00:05]}  Bd3 {[%clk 0:00:04]} 47. h4 {[%clk 0:00:05]}  Kf6 {[%clk 0:00:05]} 48. h5 {[%clk 0:00:06]}  b6 {[%clk 0:00:06]} 49. h6 {[%clk 0:00:06]}  Kg6 {[%clk 0:00:06]} 50. h7 {[%clk 0:00:07]}  Kxh7 {[%clk 0:00:07]} 51. Nxf5 {[%clk 0:00:07]}  Bc4 {[%clk 0:00:07]} 52. Ke5 {[%clk 0:00:07]}  Kg6 {[%clk 0:00:06]} 53. Ne7+ {[%clk 0:00:08]}  Kg5 {[%clk 0:00:07]} 54. Nxd5 {[%clk 0:00:09]}  Kg4 {[%clk 0:00:08]} 55. Ne3+ {[%clk 0:00:09]}  Kf3 {[%clk 0:00:07]} 56. Nxc4 {[%clk 0:00:08]}  Kxf2 {[%clk 0:00:08]} 57. Nxb6 {[%clk 0:00:09]} 1-0


[Site "https://www.chess.com"]

[Event "Titled Tuesday Blitz July 27 2021"]
[White "Andreikin, Dmitry"]
[Black "Terry, Renato"]
[WhiteFideId "4158814"]
[BlackFideId "3803457"]
[WhiteElo "2782"]
[BlackElo "2581"]
[Result "1-0"]
[Round "09"]
[TimeControl "180+1"]
[Date "2021.07.27"]
[WhiteClock "0:00:35"]
[BlackClock "0:00:01"]

1. Nf3 {[%clk 0:03:00]}  d5 {[%clk 0:02:59]} 2. e3 {[%clk 0:03:00]}  Nf6 {[%clk 0:02:59]} 3. c4 {[%clk 0:03:00]}  e6 {[%clk 0:02:57]} 4. Nc3 {[%clk 0:02:59]}  dxc4 {[%clk 0:02:56]} 5. Bxc4 {[%clk 0:02:59]}  c5 {[%clk 0:02:56]} 6. O-O {[%clk 0:02:56]}  a6 {[%clk 0:02:55]} 7. d4 {[%clk 0:02:48]}  b5 {[%clk 0:02:55]} 8. Be2 {[%clk 0:02:49]}  Bb7 {[%clk 0:02:55]} 9. dxc5 {[%clk 0:02:49]}  Bxc5 {[%clk 0:02:54]} 10. Qxd8+ {[%clk 0:02:48]}  Kxd8 {[%clk 0:02:55]} 11. Nd2 {[%clk 0:02:46]}  Nbd7 {[%clk 0:02:39]} 12. Nb3 {[%clk 0:02:45]}  Bb6 {[%clk 0:02:39]} 13. a4 {[%clk 0:02:44]}  b4 {[%clk 0:02:17]} 14. a5 {[%clk 0:02:43]}  Bc7 {[%clk 0:02:05]} 15. Na4 {[%clk 0:02:41]}  Bd6 {[%clk 0:02:00]} 16. f3 {[%clk 0:02:26]}  Ke7 {[%clk 0:01:57]} 17. e4 {[%clk 0:02:25]}  Bc6 {[%clk 0:01:32]} 18. Be3 {[%clk 0:02:11]}  Bxa4 {[%clk 0:01:30]} 19. Rxa4 {[%clk 0:02:11]}  Rhc8 {[%clk 0:01:29]} 20. Raa1 {[%clk 0:02:02]}  Rc2 {[%clk 0:01:23]} 21. Nd4 {[%clk 0:02:01]}  Rxb2 {[%clk 0:01:20]} 22. Bc1 {[%clk 0:01:54]}  Rxe2 {[%clk 0:01:13]} 23. Nxe2 {[%clk 0:01:55]}  Bc5+ {[%clk 0:01:13]} 24. Kh1 {[%clk 0:01:55]}  Ne5 {[%clk 0:01:13]} 25. Rd1 {[%clk 0:01:48]}  Nfd7 {[%clk 0:01:03]} 26. Bb2 {[%clk 0:01:33]}  Nc4 {[%clk 0:00:51]} 27. Bd4 {[%clk 0:01:33]}  Ne3 {[%clk 0:00:31]} 28. Rdc1 {[%clk 0:01:24]}  Bxd4 {[%clk 0:00:18]} 29. Nxd4 {[%clk 0:01:25]}  Ne5 {[%clk 0:00:15]} 30. Rab1 {[%clk 0:01:10]}  Nd3 {[%clk 0:00:11]} 31. Rc7+ {[%clk 0:01:09]}  Kd6 {[%clk 0:00:11]} 32. Rxf7 {[%clk 0:01:03]}  Rc8 {[%clk 0:00:11]} 33. Ra7 {[%clk 0:01:01]}  Rc4 {[%clk 0:00:03]} 34. Rxa6+ {[%clk 0:01:00]}  Kd7 {[%clk 0:00:04]} 35. Nb3 {[%clk 0:00:40]}  Rc2 {[%clk 0:00:04]} 36. Ra7+ {[%clk 0:00:40]}  Kd6 {[%clk 0:00:04]} 37. Rxg7 {[%clk 0:00:39]}  Ke5 {[%clk 0:00:01]} 38. a6 {[%clk 0:00:38]}  Ra2 {[%clk 0:00:01]} 39. Ra1 {[%clk 0:00:35]} 1-0


[Site "https://www.chess.com"]

[Event "Titled Tuesday Blitz July 27 2021"]
[White "Asadli, Vugar"]
[Black "Bok, Benjamin"]
[WhiteFideId "13405764"]
[BlackFideId "1017063"]
[WhiteElo "2386"]
[BlackElo "2658"]
[Result "1-0"]
[Round "09"]
[TimeControl "180+1"]
[Date "2021.07.27"]
[WhiteClock "0:00:22"]
[BlackClock "0:00:03"]

1. e4 {[%clk 0:03:00]}  c5 {[%clk 0:02:59]} 2. Nf3 {[%clk 0:03:00]}  d6 {[%clk 0:02:58]} 3. d4 {[%clk 0:03:01]}  cxd4 {[%clk 0:02:59]} 4. Nxd4 {[%clk 0:03:02]}  Nf6 {[%clk 0:02:59]} 5. Nc3 {[%clk 0:03:02]}  Nc6 {[%clk 0:02:58]} 6. Bg5 {[%clk 0:02:59]}  e6 {[%clk 0:02:58]} 7. Qd2 {[%clk 0:02:59]}  a6 {[%clk 0:02:58]} 8. O-O-O {[%clk 0:02:59]}  Bd7 {[%clk 0:02:59]} 9. f4 {[%clk 0:02:57]}  Be7 {[%clk 0:02:59]} 10. Nf3 {[%clk 0:02:53]}  b5 {[%clk 0:02:59]} 11. Bxf6 {[%clk 0:02:53]}  gxf6 {[%clk 0:02:59]} 12. Kb1 {[%clk 0:02:53]}  Qb6 {[%clk 0:02:55]} 13. f5 {[%clk 0:02:53]}  b4 {[%clk 0:02:54]} 14. Ne2 {[%clk 0:02:51]}  e5 {[%clk 0:02:54]} 15. Ng3 {[%clk 0:02:49]}  h5 {[%clk 0:02:54]} 16. Bc4 {[%clk 0:02:48]}  Na5 {[%clk 0:02:53]} 17. Bd5 {[%clk 0:02:43]}  Rc8 {[%clk 0:02:52]} 18. h4 {[%clk 0:02:41]}  Nc4 {[%clk 0:02:43]} 19. Bxc4 {[%clk 0:02:35]}  Rxc4 {[%clk 0:02:44]} 20. Rhe1 {[%clk 0:02:33]}  a5 {[%clk 0:02:41]} 21. Nf1 {[%clk 0:02:26]}  Qb7 {[%clk 0:02:29]} 22. Ng3 {[%clk 0:02:07]}  a4 {[%clk 0:01:57]} 23. b3 {[%clk 0:02:07]}  Rc3 {[%clk 0:01:48]} 24. Re3 {[%clk 0:02:07]}  Rxe3 {[%clk 0:01:41]} 25. Qxe3 {[%clk 0:02:08]}  Rg8 {[%clk 0:01:41]} 26. Nxh5 {[%clk 0:01:55]}  Bc6 {[%clk 0:01:12]} 27. Nd2 {[%clk 0:01:19]}  Rxg2 {[%clk 0:01:05]} 28. Nc4 {[%clk 0:01:19]}  Qc7 {[%clk 0:00:34]} 29. Rg1 {[%clk 0:01:01]}  Bxe4 {[%clk 0:00:21]} 30. Rxg2 {[%clk 0:00:59]}  Bxg2 {[%clk 0:00:22]} 31. Qh6 {[%clk 0:00:54]}  Bd5 {[%clk 0:00:19]} 32. Ng7+ {[%clk 0:00:43]}  Kd7 {[%clk 0:00:18]} 33. Qh8 {[%clk 0:00:43]}  Qd8 {[%clk 0:00:11]} 34. Nb6+ {[%clk 0:00:39]}  Kc6 {[%clk 0:00:10]} 35. Qxd8 {[%clk 0:00:34]}  Bxd8 {[%clk 0:00:11]} 36. Nxd5 {[%clk 0:00:34]}  Kxd5 {[%clk 0:00:12]} 37. h5 {[%clk 0:00:34]}  Be7 {[%clk 0:00:12]} 38. bxa4 {[%clk 0:00:27]}  Bf8 {[%clk 0:00:07]} 39. Ne8 {[%clk 0:00:27]}  Kc6 {[%clk 0:00:04]} 40. Nxf6 {[%clk 0:00:27]}  d5 {[%clk 0:00:04]} 41. a5 {[%clk 0:00:28]}  d4 {[%clk 0:00:04]} 42. a6 {[%clk 0:00:27]}  Bg7 {[%clk 0:00:03]} 43. Ne4 {[%clk 0:00:26]}  Kb6 {[%clk 0:00:03]} 44. f6 {[%clk 0:00:27]}  Bf8 {[%clk 0:00:02]} 45. Ng5 {[%clk 0:00:21]}  Kxa6 {[%clk 0:00:02]} 46. Nxf7 {[%clk 0:00:22]}  e4 {[%clk 0:00:03]} 47. h6 {[%clk 0:00:22]}  e3 {[%clk 0:00:04]} 48. Kc1 {[%clk 0:00:22]}  Kb5 {[%clk 0:00:03]} 49. h7 {[%clk 0:00:22]} 1-0


[Site "https://www.chess.com"]

[Event "Titled Tuesday Blitz July 27 2021"]
[White "Dardha, Daniel"]
[Black "Hansen, Eric"]
[WhiteFideId "240990"]
[BlackFideId "2606771"]
[WhiteElo "2489"]
[BlackElo "2568"]
[Result "0-1"]
[Round "09"]
[TimeControl "180+1"]
[Date "2021.07.27"]
[WhiteClock "0:00:28"]
[BlackClock "0:01:56"]

1. d4 {[%clk 0:02:11]}  Nf6 {[%clk 0:02:59]} 2. Bg5 {[%clk 0:02:09]}  d5 {[%clk 0:02:59]} 3. Bxf6 {[%clk 0:02:06]}  exf6 {[%clk 0:02:58]} 4. e3 {[%clk 0:02:01]}  Bd6 {[%clk 0:02:57]} 5. g3 {[%clk 0:01:57]}  f5 {[%clk 0:02:56]} 6. Bg2 {[%clk 0:01:56]}  c6 {[%clk 0:02:57]} 7. Nd2 {[%clk 0:01:54]}  Be6 {[%clk 0:02:55]} 8. Ne2 {[%clk 0:01:54]}  Nd7 {[%clk 0:02:55]} 9. O-O {[%clk 0:01:50]}  Nf6 {[%clk 0:02:55]} 10. b3 {[%clk 0:01:47]}  h5 {[%clk 0:02:52]} 11. c4 {[%clk 0:01:44]}  h4 {[%clk 0:02:52]} 12. Nf4 {[%clk 0:01:38]}  hxg3 {[%clk 0:02:49]} 13. hxg3 {[%clk 0:01:33]}  Bxf4 {[%clk 0:02:41]} 14. exf4 {[%clk 0:01:34]}  dxc4 {[%clk 0:02:37]} 15. Nxc4 {[%clk 0:01:21]}  O-O {[%clk 0:02:37]} 16. Re1 {[%clk 0:01:21]}  Qc7 {[%clk 0:02:30]} 17. Qc2 {[%clk 0:01:14]}  Rad8 {[%clk 0:02:29]} 18. Rad1 {[%clk 0:01:12]}  g6 {[%clk 0:02:28]} 19. Ne5 {[%clk 0:01:11]}  Bd5 {[%clk 0:02:29]} 20. b4 {[%clk 0:01:06]}  a6 {[%clk 0:02:25]} 21. a3 {[%clk 0:01:01]}  Rfe8 {[%clk 0:02:23]} 22. Bxd5 {[%clk 0:00:59]}  Rxd5 {[%clk 0:02:17]} 23. Kg2 {[%clk 0:00:54]}  Red8 {[%clk 0:02:15]} 24. Nf3 {[%clk 0:00:41]}  a5 {[%clk 0:02:15]} 25. Rh1 {[%clk 0:00:39]}  axb4 {[%clk 0:02:15]} 26. axb4 {[%clk 0:00:40]}  Kg7 {[%clk 0:02:01]} 27. Qc3 {[%clk 0:00:28]}  Qe7 {[%clk 0:01:56]} 0-1


[Site "https://www.chess.com"]

[Event "Titled Tuesday Blitz July 27 2021"]
[White "Demchenko, Anton"]
[Black "Weetik, Vjacheslav"]
[WhiteFideId "4160258"]
[BlackFideId "4153472"]
[WhiteElo "2593"]
[BlackElo "2469"]
[Result "1-0"]
[Round "09"]
[TimeControl "180+1"]
[Date "2021.07.27"]
[WhiteClock "0:00:06"]
[BlackClock "0:00:01"]

1. e4 {[%clk 0:03:00]}  e5 {[%clk 0:02:59]} 2. Nf3 {[%clk 0:03:00]}  Nc6 {[%clk 0:03:00]} 3. Bc4 {[%clk 0:02:58]}  Nf6 {[%clk 0:02:59]} 4. d3 {[%clk 0:02:59]}  Be7 {[%clk 0:02:56]} 5. O-O {[%clk 0:02:58]}  O-O {[%clk 0:02:56]} 6. Nc3 {[%clk 0:02:58]}  d6 {[%clk 0:02:55]} 7. a3 {[%clk 0:02:55]}  Bg4 {[%clk 0:02:39]} 8. h3 {[%clk 0:02:55]}  Bh5 {[%clk 0:02:24]} 9. Be3 {[%clk 0:02:53]}  Nd7 {[%clk 0:02:15]} 10. Ba2 {[%clk 0:02:40]}  Kh8 {[%clk 0:02:14]} 11. g4 {[%clk 0:02:36]}  Bg6 {[%clk 0:02:14]} 12. Ne2 {[%clk 0:02:34]}  Nc5 {[%clk 0:02:03]} 13. Ng3 {[%clk 0:02:32]}  Ne6 {[%clk 0:01:57]} 14. Nf5 {[%clk 0:02:26]}  Bxf5 {[%clk 0:01:16]} 15. gxf5 {[%clk 0:02:26]}  Nf4 {[%clk 0:01:15]} 16. Bxf4 {[%clk 0:02:10]}  exf4 {[%clk 0:01:16]} 17. Qd2 {[%clk 0:02:10]}  Bg5 {[%clk 0:01:02]} 18. Kh1 {[%clk 0:01:21]}  Ne5 {[%clk 0:01:00]} 19. Nxe5 {[%clk 0:01:21]}  dxe5 {[%clk 0:01:00]} 20. Qe2 {[%clk 0:01:21]}  g6 {[%clk 0:00:58]} 21. Qg4 {[%clk 0:01:19]}  Qf6 {[%clk 0:00:49]} 22. Rg1 {[%clk 0:01:11]}  Bh6 {[%clk 0:00:46]} 23. Rad1 {[%clk 0:01:04]}  Rg8 {[%clk 0:00:45]} 24. c3 {[%clk 0:01:02]}  Rad8 {[%clk 0:00:35]} 25. Bc4 {[%clk 0:00:49]}  c6 {[%clk 0:00:35]} 26. a4 {[%clk 0:00:48]}  Rd6 {[%clk 0:00:30]} 27. b4 {[%clk 0:00:43]}  Rdd8 {[%clk 0:00:24]} 28. a5 {[%clk 0:00:41]}  b5 {[%clk 0:00:23]} 29. axb6 {[%clk 0:00:39]}  axb6 {[%clk 0:00:24]} 30. b5 {[%clk 0:00:40]}  gxf5 {[%clk 0:00:19]} 31. Qxf5 {[%clk 0:00:40]}  Qxf5 {[%clk 0:00:18]} 32. exf5 {[%clk 0:00:41]}  cxb5 {[%clk 0:00:15]} 33. Bxb5 {[%clk 0:00:37]}  Rg5 {[%clk 0:00:12]} 34. Rxg5 {[%clk 0:00:34]}  Bxg5 {[%clk 0:00:12]} 35. Ra1 {[%clk 0:00:32]}  Rc8 {[%clk 0:00:12]} 36. Ra7 {[%clk 0:00:21]}  Rxc3 {[%clk 0:00:12]} 37. Kg2 {[%clk 0:00:21]}  e4 {[%clk 0:00:09]} 38. dxe4 {[%clk 0:00:19]}  Bh4 {[%clk 0:00:10]} 39. Be2 {[%clk 0:00:12]}  Kg7 {[%clk 0:00:07]} 40. e5 {[%clk 0:00:12]}  Rc5 {[%clk 0:00:06]} 41. f6+ {[%clk 0:00:10]}  Kh6 {[%clk 0:00:04]} 42. Rxf7 {[%clk 0:00:09]}  Rxe5 {[%clk 0:00:05]} 43. Bd3 {[%clk 0:00:09]}  Kg5 {[%clk 0:00:02]} 44. Rxh7 {[%clk 0:00:08]}  Rd5 {[%clk 0:00:01]} 45. f7 {[%clk 0:00:08]}  Rd8 {[%clk 0:00:01]} 46. Kf3 {[%clk 0:00:06]}  Rf8 {[%clk 0:00:01]} 47. Bc4 {[%clk 0:00:06]}  b5 {[%clk 0:00:01]} 48. Bxb5 {[%clk 0:00:06]} 1-0


[Site "https://www.chess.com"]

[Event "Titled Tuesday Blitz July 27 2021"]
[White "Indjic, Aleksandar"]
[Black "Timmermans, Mark"]
[WhiteFideId "911925"]
[BlackFideId "1026399"]
[WhiteElo "2643"]
[BlackElo "2460"]
[Result "1-0"]
[Round "09"]
[TimeControl "180+1"]
[Date "2021.07.27"]
[WhiteClock "0:01:24"]
[BlackClock "0:00:17"]

1. d4 {[%clk 0:03:00]}  e6 {[%clk 0:02:57]} 2. Nf3 {[%clk 0:03:01]}  d5 {[%clk 0:02:54]} 3. c4 {[%clk 0:02:59]}  Nf6 {[%clk 0:02:50]} 4. Bg5 {[%clk 0:02:58]}  a6 {[%clk 0:02:47]} 5. Nbd2 {[%clk 0:02:56]}  Be7 {[%clk 0:02:45]} 6. Qc2 {[%clk 0:02:53]}  Nbd7 {[%clk 0:02:43]} 7. e3 {[%clk 0:02:53]}  O-O {[%clk 0:02:43]} 8. cxd5 {[%clk 0:02:49]}  exd5 {[%clk 0:02:43]} 9. Be2 {[%clk 0:02:37]}  h6 {[%clk 0:02:40]} 10. Bh4 {[%clk 0:02:36]}  c6 {[%clk 0:02:32]} 11. O-O {[%clk 0:02:35]}  Re8 {[%clk 0:02:28]} 12. Bd3 {[%clk 0:02:32]}  Nf8 {[%clk 0:02:27]} 13. Bg3 {[%clk 0:02:26]}  Be6 {[%clk 0:02:23]} 14. Rab1 {[%clk 0:02:23]}  a5 {[%clk 0:02:16]} 15. a3 {[%clk 0:02:21]}  c5 {[%clk 0:01:50]} 16. dxc5 {[%clk 0:02:20]}  Rc8 {[%clk 0:01:50]} 17. b4 {[%clk 0:02:18]}  Bd7 {[%clk 0:01:04]} 18. Nd4 {[%clk 0:02:09]}  Ne6 {[%clk 0:00:59]} 19. N2f3 {[%clk 0:02:04]}  Bf8 {[%clk 0:00:55]} 20. Nxe6 {[%clk 0:02:03]}  fxe6 {[%clk 0:00:55]} 21. Rfc1 {[%clk 0:01:54]}  Ng4 {[%clk 0:00:49]} 22. h3 {[%clk 0:01:53]}  Nf6 {[%clk 0:00:49]} 23. Bg6 {[%clk 0:01:52]}  Re7 {[%clk 0:00:48]} 24. Bd6 {[%clk 0:01:50]}  Bb5 {[%clk 0:00:43]} 25. Ne5 {[%clk 0:01:49]}  Rd7 {[%clk 0:00:41]} 26. Bxf8 {[%clk 0:01:47]}  Kxf8 {[%clk 0:00:37]} 27. Nxd7+ {[%clk 0:01:44]}  Qxd7 {[%clk 0:00:38]} 28. Qb2 {[%clk 0:01:43]}  a4 {[%clk 0:00:37]} 29. Qd4 {[%clk 0:01:41]}  Qc7 {[%clk 0:00:37]} 30. f4 {[%clk 0:01:39]}  Kg8 {[%clk 0:00:35]} 31. Rd1 {[%clk 0:01:38]}  Rf8 {[%clk 0:00:34]} 32. Rbc1 {[%clk 0:01:38]}  Kh8 {[%clk 0:00:31]} 33. Qb2 {[%clk 0:01:32]}  Qc6 {[%clk 0:00:31]} 34. Qe5 {[%clk 0:01:26]}  Nd7 {[%clk 0:00:30]} 35. Qd6 {[%clk 0:01:26]}  Rf6 {[%clk 0:00:28]} 36. Bd3 {[%clk 0:01:25]}  e5 {[%clk 0:00:17]} 37. Qxc6 {[%clk 0:01:24]} 1-0


[Site "https://www.chess.com"]

[Event "Titled Tuesday Blitz July 27 2021"]
[White "Ivanov, Oleg"]
[Black "Grigorjev, Iljya"]
[WhiteFideId "4103114"]
[BlackFideId "24159565"]
[WhiteElo "2768"]
[BlackElo "2142"]
[Result "1-0"]
[Round "09"]
[TimeControl "180+1"]
[Date "2021.07.27"]
[WhiteClock "0:00:05"]
[BlackClock "0:00:02"]

1. c4 {[%clk 0:03:00]}  Nf6 {[%clk 0:02:57]} 2. g3 {[%clk 0:02:59]}  c5 {[%clk 0:02:53]} 3. Bg2 {[%clk 0:02:58]}  Nc6 {[%clk 0:02:51]} 4. Nc3 {[%clk 0:02:57]}  g6 {[%clk 0:02:51]} 5. d3 {[%clk 0:02:57]}  Bg7 {[%clk 0:02:50]} 6. Qd2 {[%clk 0:02:53]}  O-O {[%clk 0:02:46]} 7. b3 {[%clk 0:02:51]}  e6 {[%clk 0:02:44]} 8. Bb2 {[%clk 0:02:50]}  d5 {[%clk 0:02:44]} 9. Nf3 {[%clk 0:02:49]}  d4 {[%clk 0:02:41]} 10. Nd1 {[%clk 0:02:44]}  e5 {[%clk 0:02:40]} 11. O-O {[%clk 0:02:42]}  Re8 {[%clk 0:02:35]} 12. e4 {[%clk 0:02:36]}  a5 {[%clk 0:02:25]} 13. a3 {[%clk 0:02:36]}  Qd6 {[%clk 0:02:22]} 14. h3 {[%clk 0:02:35]}  a4 {[%clk 0:02:21]} 15. bxa4 {[%clk 0:02:30]}  Rxa4 {[%clk 0:02:19]} 16. Qc2 {[%clk 0:02:31]}  Ra7 {[%clk 0:02:17]} 17. Bc1 {[%clk 0:02:27]}  Bd7 {[%clk 0:02:16]} 18. Rb1 {[%clk 0:02:06]}  Nd8 {[%clk 0:02:02]} 19. Kh2 {[%clk 0:02:05]}  Ne6 {[%clk 0:01:58]} 20. Ng1 {[%clk 0:02:04]}  Bc6 {[%clk 0:01:46]} 21. f4 {[%clk 0:01:58]}  exf4 {[%clk 0:01:45]} 22. gxf4 {[%clk 0:01:58]}  Nh5 {[%clk 0:01:43]} 23. e5 {[%clk 0:01:35]}  Qc7 {[%clk 0:01:40]} 24. Qf2 {[%clk 0:01:28]}  Nexf4 {[%clk 0:01:32]} 25. Bxc6 {[%clk 0:01:23]}  bxc6 {[%clk 0:01:31]} 26. Qf3 {[%clk 0:01:13]}  Bxe5 {[%clk 0:01:28]} 27. Kh1 {[%clk 0:01:13]}  Bd6 {[%clk 0:01:10]} 28. Nf2 {[%clk 0:01:13]}  Ne2 {[%clk 0:01:01]} 29. Nxe2 {[%clk 0:01:07]}  Rxe2 {[%clk 0:01:01]} 30. Ne4 {[%clk 0:01:01]}  Ra2 {[%clk 0:00:38]} 31. Bh6 {[%clk 0:00:50]}  f5 {[%clk 0:00:36]} 32. Rbe1 {[%clk 0:00:33]}  Ra8 {[%clk 0:00:29]} 33. Nxd6 {[%clk 0:00:20]}  Qxd6 {[%clk 0:00:29]} 34. Rf2 {[%clk 0:00:21]}  R2xa3 {[%clk 0:00:16]} 35. Kg2 {[%clk 0:00:16]}  Ra2 {[%clk 0:00:16]} 36. Ree2 {[%clk 0:00:17]}  Rxe2 {[%clk 0:00:14]} 37. Rxe2 {[%clk 0:00:18]}  Kf7 {[%clk 0:00:13]} 38. Rb2 {[%clk 0:00:14]}  Re8 {[%clk 0:00:08]} 39. Rb7+ {[%clk 0:00:13]}  Re7 {[%clk 0:00:08]} 40. Rb2 {[%clk 0:00:10]}  Qe6 {[%clk 0:00:06]} 41. Bg5 {[%clk 0:00:10]}  Rd7 {[%clk 0:00:04]} 42. Re2 {[%clk 0:00:10]}  Qxe2+ {[%clk 0:00:01]} 43. Qxe2 {[%clk 0:00:09]}  h6 {[%clk 0:00:02]} 44. Bxh6 {[%clk 0:00:09]}  Re7 {[%clk 0:00:02]} 45. Qf3 {[%clk 0:00:08]}  Re6 {[%clk 0:00:03]} 46. Bg5 {[%clk 0:00:08]}  Kg7 {[%clk 0:00:02]} 47. Qf2 {[%clk 0:00:06]}  Kf7 {[%clk 0:00:02]} 48. Qa2 {[%clk 0:00:06]}  Ke8 {[%clk 0:00:01]} 49. Qa8+ {[%clk 0:00:06]}  Kf7 {[%clk 0:00:01]} 50. Qb7+ {[%clk 0:00:06]}  Kf8 {[%clk 0:00:02]} 51. Qc8+ {[%clk 0:00:06]}  Re8 {[%clk 0:00:03]} 52. Qxc6 {[%clk 0:00:06]}  Re2+ {[%clk 0:00:01]} 53. Kf3 {[%clk 0:00:05]}  Rh2 {[%clk 0:00:02]} 54. Qxc5+ {[%clk 0:00:05]}  Kg8 {[%clk 0:00:01]} 55. Qc8+ {[%clk 0:00:05]}  Kh7 {[%clk 0:00:02]} 56. Qc7+ {[%clk 0:00:05]} 1-0


[Site "https://www.chess.com"]